[Event "Early-Titled-Tuesday-Blitz-January-23-2024"]
[Site "Chess.com"]
[Date "2024.01.23"]
[Round "10"]
[White "Yaacovn"]
[Black "Grandelicious"]
[Result "1/2-1/2"]
[WhiteElo "2804"]
[BlackElo "2898"]
[TimeControl "180+1"]
[EndTime "9:58:19 PST"]
[Termination "Game drawn by repetition"]

1. d4 {[%clk 0:02:50.2]} 1... Nf6 {[%clk 0:03:00.5]} 2. e3 {[%clk 0:02:50]} 2...
c5 {[%clk 0:02:54.2]} 3. c3 {[%clk 0:02:50]} 3... g6 {[%clk 0:02:50.1]} 4. Nf3
{[%clk 0:02:43.5]} 4... Bg7 {[%clk 0:02:50.3]} 5. Be2 {[%clk 0:02:43.9]} 5...
O-O {[%clk 0:02:50.5]} 6. O-O {[%clk 0:02:44.5]} 6... b6 {[%clk 0:02:50.6]} 7.
b3 {[%clk 0:02:45]} 7... Bb7 {[%clk 0:02:48.1]} 8. Bb2 {[%clk 0:02:45.3]} 8...
d6 {[%clk 0:02:32.7]} 9. c4 {[%clk 0:02:39.5]} 9... cxd4 {[%clk 0:02:28.4]} 10.
Nxd4 {[%clk 0:02:39.1]} 10... Nbd7 {[%clk 0:02:28.7]} 11. Bf3 {[%clk 0:02:38.8]}
11... Bxf3 {[%clk 0:02:28.9]} 12. Qxf3 {[%clk 0:02:39.7]} 12... Nc5 {[%clk
0:02:15.1]} 13. Rd1 {[%clk 0:02:39.1]} 13... e5 {[%clk 0:02:01.5]} 14. Nc6
{[%clk 0:02:24.7]} 14... Qc7 {[%clk 0:01:47.2]} 15. Nb4 {[%clk 0:02:22]} 15...
e4 {[%clk 0:01:41.3]} 16. Qe2 {[%clk 0:01:57.2]} 16... a5 {[%clk 0:01:36.7]} 17.
Bxf6 {[%clk 0:01:46.6]} 17... axb4 {[%clk 0:01:27.1]} 18. Bxg7 {[%clk
0:01:36.2]} 18... Kxg7 {[%clk 0:01:28]} 19. Qb2+ {[%clk 0:01:33.7]} 19... Kg8
{[%clk 0:01:23.9]} 20. Nd2 {[%clk 0:01:33.4]} 20... f5 {[%clk 0:01:11.8]} 21.
Nf1 {[%clk 0:01:24.1]} 21... Nd3 {[%clk 0:01:02]} 22. Qc2 {[%clk 0:01:23.8]}
22... d5 {[%clk 0:00:54.5]} 23. Ng3 {[%clk 0:01:23.6]} 23... dxc4 {[%clk
0:00:53.7]} 24. bxc4 {[%clk 0:01:22.4]} 24... Rfc8 {[%clk 0:00:48.3]} 25. f3
{[%clk 0:01:07.3]} 25... Qc5 {[%clk 0:00:23.5]} 26. Qd2 {[%clk 0:00:58.8]} 26...
Re8 {[%clk 0:00:15.5]} 27. fxe4 {[%clk 0:00:58]} 27... fxe4 {[%clk 0:00:15.1]}
28. Nxe4 {[%clk 0:00:47.3]} 28... Rxe4 {[%clk 0:00:16]} 29. Qxd3 {[%clk
0:00:47.6]} 29... Rxe3 {[%clk 0:00:16.6]} 30. Qd5+ {[%clk 0:00:43.6]} 30... Qxd5
{[%clk 0:00:16.7]} 31. cxd5 {[%clk 0:00:44.5]} 31... Kf8 {[%clk 0:00:15.9]} 32.
Rab1 {[%clk 0:00:37.3]} 32... Re4 {[%clk 0:00:13.7]} 33. Rd2 {[%clk 0:00:29]}
33... Ke7 {[%clk 0:00:14]} 34. Rc1 {[%clk 0:00:24.5]} 34... Kd7 {[%clk
0:00:10.7]} 35. h3 {[%clk 0:00:23.1]} 35... Ra5 {[%clk 0:00:10.1]} 36. Rf1
{[%clk 0:00:20.3]} 36... Re5 {[%clk 0:00:09.2]} 37. Rf7+ {[%clk 0:00:15.2]}
37... Kd6 {[%clk 0:00:09.8]} 38. Rf6+ {[%clk 0:00:14.5]} 38... Kc7 {[%clk
0:00:06.4]} 39. d6+ {[%clk 0:00:14.4]} 39... Kd8 {[%clk 0:00:03.9]} 40. Rf8+
{[%clk 0:00:13.8]} 40... Kd7 {[%clk 0:00:04.4]} 41. Rf7+ {[%clk 0:00:13.8]}
41... Kd8 {[%clk 0:00:05]} 42. Rb2 {[%clk 0:00:03.9]} 42... Rad5 {[%clk
0:00:03.8]} 43. Rxb4 {[%clk 0:00:03.6]} 43... b5 {[%clk 0:00:04.5]} 44. a4
{[%clk 0:00:03.2]} 44... Rxd6 {[%clk 0:00:03.8]} 45. Rxb5 {[%clk 0:00:03.3]}
45... Rxb5 {[%clk 0:00:03]} 46. axb5 {[%clk 0:00:04.2]} 46... Rb6 {[%clk
0:00:03.7]} 47. Rxh7 {[%clk 0:00:04.4]} 47... Rxb5 {[%clk 0:00:04]} 48. Rh6
{[%clk 0:00:05.3]} 48... Rb6 {[%clk 0:00:03.7]} 49. h4 {[%clk 0:00:05.8]} 49...
Ke7 {[%clk 0:00:04.1]} 50. h5 {[%clk 0:00:06.2]} 50... Rb1+ {[%clk 0:00:04.2]}
51. Kh2 {[%clk 0:00:06.2]} 51... gxh5 {[%clk 0:00:05.1]} 52. Rxh5 {[%clk
0:00:06.4]} 52... Kf6 {[%clk 0:00:05.6]} 53. Rh3 {[%clk 0:00:07.3]} 53... Kg6
{[%clk 0:00:06.1]} 54. Rg3+ {[%clk 0:00:07.9]} 54... Kh6 {[%clk 0:00:06.8]} 55.
Re3 {[%clk 0:00:08.8]} 55... Kg6 {[%clk 0:00:07.3]} 56. Rh3 {[%clk 0:00:09.7]}
56... Kg5 {[%clk 0:00:07.6]} 57. Ra3 {[%clk 0:00:09.7]} 57... Kg6 {[%clk
0:00:07.7]} 58. Kg3 {[%clk 0:00:10]} 58... Kg7 {[%clk 0:00:08.2]} 59. Ra5 {[%clk
0:00:10.3]} 59... Kg6 {[%clk 0:00:08.6]} 60. Ra3 {[%clk 0:00:10.1]} 60... Rb4
{[%clk 0:00:08.2]} 61. Rf3 {[%clk 0:00:11]} 61... Rb5 {[%clk 0:00:08.3]} 62. Kh3
{[%clk 0:00:11.4]} 62... Rb4 {[%clk 0:00:08.8]} 63. Rg3+ {[%clk 0:00:10.5]}
63... Kh6 {[%clk 0:00:09]} 64. Rg4 {[%clk 0:00:11]} 64... Rb1 {[%clk 0:00:08.4]}
65. Kh4 {[%clk 0:00:11.1]} 65... Rb2 {[%clk 0:00:08]} 66. Rg3 {[%clk 0:00:10.1]}
66... Rb1 {[%clk 0:00:08.3]} 67. Kh3 {[%clk 0:00:08.5]} 67... Ra1 {[%clk
0:00:08]} 68. Rc3 {[%clk 0:00:07.9]} 68... Kh5 {[%clk 0:00:08.2]} 69. Rc5+
{[%clk 0:00:07.6]} 69... Kg6 {[%clk 0:00:08.8]} 70. Kh4 {[%clk 0:00:07.5]} 70...
Ra4+ {[%clk 0:00:08.8]} 71. g4 {[%clk 0:00:07.6]} 71... Ra1 {[%clk 0:00:09.7]}
72. Rc6+ {[%clk 0:00:07.4]} 72... Kg7 {[%clk 0:00:10.4]} 73. Kh5 {[%clk
0:00:08]} 73... Ra5+ {[%clk 0:00:10.3]} 74. g5 {[%clk 0:00:07.7]} 74... Ra8
{[%clk 0:00:10.6]} 75. Rc7+ {[%clk 0:00:07.5]} 75... Kg8 {[%clk 0:00:11]} 76.
Kh6 {[%clk 0:00:07.9]} 76... Rb8 {[%clk 0:00:11.3]} 77. Rg7+ {[%clk 0:00:07.4]}
77... Kh8 {[%clk 0:00:11.4]} 78. Rf7 {[%clk 0:00:07.4]} 78... Kg8 {[%clk
0:00:11.8]} 79. Rf6 {[%clk 0:00:07.5]} 79... Ra8 {[%clk 0:00:11.6]} 80. Rb6
{[%clk 0:00:06.9]} 80... Kh8 {[%clk 0:00:11.2]} 81. g6 {[%clk 0:00:06.3]} 81...
Kg8 {[%clk 0:00:11.7]} 82. Rb7 {[%clk 0:00:06]} 82... Rc8 {[%clk 0:00:11.7]} 83.
Rd7 {[%clk 0:00:05.6]} 83... Rb8 {[%clk 0:00:11.7]} 84. Rg7+ {[%clk 0:00:05.9]}
84... Kh8 {[%clk 0:00:11.6]} 85. Rd7 {[%clk 0:00:06.8]} 85... Kg8 {[%clk
0:00:12]} 86. Rd2 {[%clk 0:00:06.3]} 86... Ra8 {[%clk 0:00:12.2]} 87. Rh2 {[%clk
0:00:06.5]} 87... Rb8 {[%clk 0:00:12.4]} 88. Rh1 {[%clk 0:00:06.6]} 88... Ra8
{[%clk 0:00:12.9]} 89. Rf1 {[%clk 0:00:06.2]} 89... Rb8 {[%clk 0:00:13.4]} 90.
Rf2 {[%clk 0:00:04.9]} 90... Ra8 {[%clk 0:00:13.8]} 91. Rf7 {[%clk 0:00:04.7]}
91... Rb8 {[%clk 0:00:14.1]} 92. Rg7+ {[%clk 0:00:05.2]} 92... Kh8 {[%clk
0:00:14.1]} 93. Rh7+ {[%clk 0:00:06.1]} 93... Kg8 {[%clk 0:00:14.7]} 94. Rg7+
{[%clk 0:00:06.8]} 1/2-1/2

[Event "Early-Titled-Tuesday-Blitz-January-23-2024"]
[Site "Chess.com"]
[Date "2024.01.23"]
[Round "10"]
[White "Jumbo"]
[Black "ContrVersia"]
[Result "0-1"]
[WhiteElo "2953"]
[BlackElo "2861"]
[TimeControl "180+1"]
[EndTime "9:58:24 PST"]
[Termination "ContrVersia won by resignation"]

1. d4 {[%clk 0:03:00.9]} 1... Nf6 {[%clk 0:02:56.1]} 2. Nf3 {[%clk 0:03:01]}
2... e6 {[%clk 0:02:56.4]} 3. Bf4 {[%clk 0:03:00.2]} 3... c5 {[%clk 0:02:55.3]}
4. e3 {[%clk 0:03:00.1]} 4... cxd4 {[%clk 0:02:55.7]} 5. exd4 {[%clk 0:03:01]}
5... Be7 {[%clk 0:02:56.1]} 6. c3 {[%clk 0:02:51.5]} 6... O-O {[%clk 0:02:51.2]}
7. Nbd2 {[%clk 0:02:50.4]} 7... b6 {[%clk 0:02:49.1]} 8. h3 {[%clk 0:02:39.4]}
8... d6 {[%clk 0:02:47.8]} 9. a4 {[%clk 0:02:37.8]} 9... h6 {[%clk 0:02:45]} 10.
Bc4 {[%clk 0:02:23.5]} 10... Ba6 {[%clk 0:02:43.1]} 11. O-O {[%clk 0:02:18.9]}
11... Qc7 {[%clk 0:02:39.5]} 12. Bxa6 {[%clk 0:02:14.6]} 12... Nxa6 {[%clk
0:02:40.4]} 13. Qe2 {[%clk 0:02:14.9]} 13... Qb7 {[%clk 0:02:40.8]} 14. Nc4
{[%clk 0:02:12.6]} 14... Rfd8 {[%clk 0:02:40.5]} 15. Rfe1 {[%clk 0:02:11.7]}
15... Nc7 {[%clk 0:02:37.2]} 16. Nfd2 {[%clk 0:02:08]} 16... Ncd5 {[%clk
0:02:33.6]} 17. Bg3 {[%clk 0:02:06.6]} 17... a6 {[%clk 0:02:33.8]} 18. Na3
{[%clk 0:01:14.1]} 18... Qc6 {[%clk 0:02:24.2]} 19. Qc4 {[%clk 0:01:14]} 19...
Qb7 {[%clk 0:02:22.3]} 20. Qe2 {[%clk 0:01:05.6]} 20... Nc7 {[%clk 0:02:12.4]}
21. Qf3 {[%clk 0:01:02.6]} 21... Qxf3 {[%clk 0:01:48.9]} 22. Nxf3 {[%clk
0:01:03.5]} 22... b5 {[%clk 0:01:46.3]} 23. Nc2 {[%clk 0:01:02.1]} 23... Ncd5
{[%clk 0:01:41.5]} 24. Nd2 {[%clk 0:00:55.7]} 24... Rdc8 {[%clk 0:01:36.9]} 25.
Rec1 {[%clk 0:00:47.6]} 25... Nb6 {[%clk 0:01:14.3]} 26. axb5 {[%clk 0:00:42]}
26... axb5 {[%clk 0:01:15.2]} 27. Nb4 {[%clk 0:00:40]} 27... d5 {[%clk
0:01:10.5]} 28. Nd3 {[%clk 0:00:39.8]} 28... Nc4 {[%clk 0:01:09.9]} 29. Nb3
{[%clk 0:00:26.6]} 29... Nd7 {[%clk 0:01:05.4]} 30. Bf4 {[%clk 0:00:22.4]} 30...
f6 {[%clk 0:01:03.7]} 31. Re1 {[%clk 0:00:13]} 31... Kf7 {[%clk 0:01:03.1]} 32.
Rab1 {[%clk 0:00:12.5]} 32... h5 {[%clk 0:01:00.4]} 33. h4 {[%clk 0:00:12.7]}
33... Ra6 {[%clk 0:00:55.4]} 34. Bg3 {[%clk 0:00:12.4]} 34... g6 {[%clk
0:00:55.5]} 35. Re2 {[%clk 0:00:11.6]} 35... Nd6 {[%clk 0:00:48.7]} 36. f3
{[%clk 0:00:11.1]} 36... Nf5 {[%clk 0:00:47.2]} 37. Bf2 {[%clk 0:00:10.8]} 37...
Rb6 {[%clk 0:00:43.9]} 38. Rbe1 {[%clk 0:00:10]} 38... b4 {[%clk 0:00:42.6]} 39.
cxb4 {[%clk 0:00:08.9]} 39... Bxb4 {[%clk 0:00:41.4]} 40. Rd1 {[%clk 0:00:08.3]}
40... Bd6 {[%clk 0:00:39.7]} 41. Nbc5 {[%clk 0:00:08.8]} 41... Bxc5 {[%clk
0:00:36.2]} 42. dxc5 {[%clk 0:00:08.8]} 42... Rb3 {[%clk 0:00:36.5]} 43. Nf4
{[%clk 0:00:09]} 43... Ng7 {[%clk 0:00:33.4]} 44. Nxd5 {[%clk 0:00:04.8]} 44...
exd5 {[%clk 0:00:30.8]} 45. Rxd5 {[%clk 0:00:05.7]} 45... Rb7 {[%clk 0:00:17.6]}
46. Rd6 {[%clk 0:00:03.9]} 46... Nxc5 {[%clk 0:00:15.3]} 47. b4 {[%clk
0:00:02.3]} 47... Nce6 {[%clk 0:00:14.5]} 48. b5 {[%clk 0:00:02.7]} 48... Rd8
{[%clk 0:00:11.8]} 49. Rxd8 {[%clk 0:00:01.3]} 49... Nxd8 {[%clk 0:00:12.7]} 50.
b6 {[%clk 0:00:02]} 50... Nge6 {[%clk 0:00:11.4]} 51. Rd2 {[%clk 0:00:02.4]}
51... Ke7 {[%clk 0:00:11.4]} 52. Rc2 {[%clk 0:00:02.4]} 52... Rd7 {[%clk
0:00:08.6]} 53. Rc8 {[%clk 0:00:01.3]} 53... Nb7 {[%clk 0:00:08.5]} 54. Rg8
{[%clk 0:00:01.9]} 54... Kf7 {[%clk 0:00:09]} 55. Rc8 {[%clk 0:00:02.2]} 55...
Nd6 {[%clk 0:00:09]} 56. Rc6 {[%clk 0:00:01.8]} 56... Nb7 {[%clk 0:00:07.6]} 57.
Rc8 {[%clk 0:00:01.9]} 57... Ned8 {[%clk 0:00:08]} 58. Rc4 {[%clk 0:00:01.8]}
58... Rd6 {[%clk 0:00:06.5]} 59. g4 {[%clk 0:00:01.6]} 59... hxg4 {[%clk
0:00:04.6]} 60. fxg4 {[%clk 0:00:02.5]} 60... Nc6 {[%clk 0:00:05]} 61. Kg2
{[%clk 0:00:02.4]} 61... Re6 {[%clk 0:00:04.8]} 62. Ra4 {[%clk 0:00:02.9]} 62...
Ke7 {[%clk 0:00:03.4]} 63. Ra7 {[%clk 0:00:01.2]} 63... Nxa7 {[%clk 0:00:03]}
64. bxa7 {[%clk 0:00:01.5]} 64... Ra6 {[%clk 0:00:03.8]} 65. h5 {[%clk 0:00:02]}
65... gxh5 {[%clk 0:00:04.3]} 66. gxh5 {[%clk 0:00:02.9]} 66... Kf7 {[%clk
0:00:05.1]} 67. Be3 {[%clk 0:00:03.2]} 67... f5 {[%clk 0:00:05.2]} 68. Kf3
{[%clk 0:00:02.3]} 68... Nd8 {[%clk 0:00:05.3]} 69. Kf4 {[%clk 0:00:02.6]} 69...
Ne6+ {[%clk 0:00:05.3]} 70. Kxf5 {[%clk 0:00:02.7]} 70... Ng7+ {[%clk
0:00:05.6]} 71. Kg4 {[%clk 0:00:03.5]} 71... Ra4+ {[%clk 0:00:05.1]} 72. Kg5
{[%clk 0:00:03.7]} 72... Ra5+ {[%clk 0:00:05.5]} 73. Kg4 {[%clk 0:00:04.4]}
73... Nxh5 {[%clk 0:00:03]} 74. a8=Q {[%clk 0:00:04.2]} 74... Nf6+ {[%clk
0:00:03.6]} 75. Kf3 {[%clk 0:00:04.4]} 75... Rxa8 {[%clk 0:00:04.5]} 76. Bd4
{[%clk 0:00:04.5]} 76... Ra6 {[%clk 0:00:05.4]} 77. Kf4 {[%clk 0:00:04.6]} 77...
Ra4 {[%clk 0:00:04.8]} 78. Ke5 {[%clk 0:00:04.8]} 78... Ra5+ {[%clk 0:00:05.2]}
79. Kf4 {[%clk 0:00:04.9]} 79... Rd5 {[%clk 0:00:05.5]} 80. Ke3 {[%clk 0:00:05]}
80... Ke6 {[%clk 0:00:05.9]} 81. Kd3 {[%clk 0:00:05.3]} 81... Nd7 {[%clk
0:00:05.9]} 82. Kc4 {[%clk 0:00:05.7]} 82... Ne5+ {[%clk 0:00:06.2]} 83. Kc3
{[%clk 0:00:06.5]} 83... Nc6 {[%clk 0:00:06.6]} 0-1

[Event "Early-Titled-Tuesday-Blitz-January-23-2024"]
[Site "Chess.com"]
[Date "2024.01.23"]
[Round "10"]
[White "Yushko_Olga"]
[Black "PepeCuenca"]
[Result "0-1"]
[WhiteElo "2192"]
[BlackElo "2679"]
[TimeControl "180+1"]
[EndTime "9:59:14 PST"]
[Termination "PepeCuenca won on time"]

1. d4 {[%clk 0:02:59.4]} 1... Nf6 {[%clk 0:02:59.8]} 2. c4 {[%clk 0:02:59.7]}
2... g6 {[%clk 0:03:00.7]} 3. Nf3 {[%clk 0:02:59.4]} 3... Bg7 {[%clk 0:03:01.6]}
4. Nc3 {[%clk 0:02:59.3]} 4... O-O {[%clk 0:03:02.3]} 5. Bg5 {[%clk 0:02:59.5]}
5... d6 {[%clk 0:03:03.2]} 6. e3 {[%clk 0:02:58.2]} 6... h6 {[%clk 0:03:03.8]}
7. Bh4 {[%clk 0:02:58]} 7... g5 {[%clk 0:03:04.5]} 8. Bg3 {[%clk 0:02:57]} 8...
Nh5 {[%clk 0:03:05.1]} 9. Be2 {[%clk 0:02:49.7]} 9... f5 {[%clk 0:03:04]} 10.
Qc2 {[%clk 0:02:43.5]} 10... e6 {[%clk 0:03:04]} 11. Nd2 {[%clk 0:02:28.2]}
11... Nxg3 {[%clk 0:02:59.2]} 12. hxg3 {[%clk 0:02:28.3]} 12... Nd7 {[%clk
0:02:54.8]} 13. g4 {[%clk 0:02:26.9]} 13... f4 {[%clk 0:02:49.5]} 14. O-O-O
{[%clk 0:02:18]} 14... c5 {[%clk 0:02:39.9]} 15. Rh5 {[%clk 0:02:04.5]} 15...
cxd4 {[%clk 0:02:37]} 16. exd4 {[%clk 0:02:03.9]} 16... Nf6 {[%clk 0:02:31.7]}
17. Rh3 {[%clk 0:02:03.3]} 17... Qe7 {[%clk 0:02:29.3]} 18. Rdh1 {[%clk
0:02:03.3]} 18... Bd7 {[%clk 0:02:29.1]} 19. Nde4 {[%clk 0:01:59.5]} 19... Be8
{[%clk 0:02:19.1]} 20. Nxf6+ {[%clk 0:01:52.4]} 20... Rxf6 {[%clk 0:02:13.4]}
21. Bd3 {[%clk 0:01:49.3]} 21... Rc8 {[%clk 0:02:09.2]} 22. Ne4 {[%clk 0:01:48]}
22... d5 {[%clk 0:02:06.5]} 23. Nxf6+ {[%clk 0:01:47.6]} 23... Qxf6 {[%clk
0:02:07.4]} 24. Bh7+ {[%clk 0:01:32.8]} 24... Kf8 {[%clk 0:02:05.5]} 25. Rc3
{[%clk 0:01:31]} 25... dxc4 {[%clk 0:01:52.3]} 26. Rxc4 {[%clk 0:01:28]} 26...
Rxc4 {[%clk 0:01:51.3]} 27. Qxc4 {[%clk 0:01:28.9]} 27... Qxd4 {[%clk
0:01:51.3]} 28. Qxd4 {[%clk 0:01:26.6]} 28... Bxd4 {[%clk 0:01:52.2]} 29. f3
{[%clk 0:01:25.8]} 29... Kg7 {[%clk 0:01:51.1]} 30. Be4 {[%clk 0:01:24.5]} 30...
b6 {[%clk 0:01:48.6]} 31. Rd1 {[%clk 0:01:24.2]} 31... e5 {[%clk 0:01:48.2]} 32.
Kb1 {[%clk 0:01:21.8]} 32... a5 {[%clk 0:01:44.3]} 33. Rc1 {[%clk 0:01:20.9]}
33... Bc5 {[%clk 0:01:44.8]} 34. a3 {[%clk 0:01:13.8]} 34... h5 {[%clk
0:01:39.2]} 35. gxh5 {[%clk 0:01:11.6]} 35... Bxh5 {[%clk 0:01:39.2]} 36. Rh1
{[%clk 0:01:07.7]} 36... Bf7 {[%clk 0:01:30.9]} 37. Rh7+ {[%clk 0:01:07.2]}
37... Kg8 {[%clk 0:01:26.5]} 38. Kc2 {[%clk 0:01:02.4]} 38... Bc4 {[%clk
0:01:26.1]} 39. Rb7 {[%clk 0:00:59]} 39... Bf1 {[%clk 0:01:25.1]} 40. b4 {[%clk
0:00:57.3]} 40... axb4 {[%clk 0:01:26]} 41. axb4 {[%clk 0:00:57.3]} 41... Bd4
{[%clk 0:01:26.2]} 42. Rd7 {[%clk 0:00:48.3]} 42... Bxg2 {[%clk 0:01:23.9]} 43.
Rd6 {[%clk 0:00:48.3]} 43... Kf8 {[%clk 0:01:21.8]} 44. Rg6 {[%clk 0:00:48.2]}
44... Ke7 {[%clk 0:01:14.9]} 45. Rxg5 {[%clk 0:00:48.4]} 45... Bf1 {[%clk
0:01:15.8]} 46. Rg6 {[%clk 0:00:46.6]} 46... Bc4 {[%clk 0:01:15.1]} 47. Rc6
{[%clk 0:00:45.5]} 47... Bb5 {[%clk 0:01:14.5]} 48. Rh6 {[%clk 0:00:45.1]} 48...
Kd7 {[%clk 0:01:14.6]} 49. Bd3 {[%clk 0:00:45.3]} 49... Ba4+ {[%clk 0:01:13.8]}
50. Kd2 {[%clk 0:00:45.1]} 50... Be3+ {[%clk 0:01:13.3]} 51. Ke2 {[%clk
0:00:44.9]} 51... Kc7 {[%clk 0:01:13.1]} 52. Bc4 {[%clk 0:00:42.7]} 52... Bd4
{[%clk 0:01:07.2]} 53. Kd3 {[%clk 0:00:42.6]} 53... Bc6 {[%clk 0:01:03.5]} 54.
b5 {[%clk 0:00:39.8]} 54... Bxf3 {[%clk 0:01:02.6]} 55. Be6 {[%clk 0:00:35.7]}
55... Bg2 {[%clk 0:00:58.7]} 56. Ke2 {[%clk 0:00:31.2]} 56... e4 {[%clk
0:00:56.8]} 57. Bd5 {[%clk 0:00:30.7]} 57... f3+ {[%clk 0:00:55.8]} 58. Kd2
{[%clk 0:00:30.8]} 58... e3+ {[%clk 0:00:56.1]} 59. Kd3 {[%clk 0:00:30.6]} 59...
e2 {[%clk 0:00:56.1]} 60. Re6 {[%clk 0:00:29.6]} 60... Bf1 {[%clk 0:00:48.5]}
61. Bxf3 {[%clk 0:00:28.4]} 61... Bc5 {[%clk 0:00:34.7]} 62. Bxe2 {[%clk
0:00:28.5]} 62... Bh3 {[%clk 0:00:35.1]} 63. Rh6 {[%clk 0:00:27.9]} 63... Bf5+
{[%clk 0:00:34.8]} 64. Kc4 {[%clk 0:00:27.7]} 64... Be4 {[%clk 0:00:34.2]} 65.
Bg4 {[%clk 0:00:27]} 65... Bg2 {[%clk 0:00:32.7]} 66. Rh7+ {[%clk 0:00:26.8]}
66... Kd6 {[%clk 0:00:32.7]} 67. Rd7+ {[%clk 0:00:27.1]} 67... Ke5 {[%clk
0:00:31.7]} 68. Be2 {[%clk 0:00:25.8]} 68... Ke4 {[%clk 0:00:28.5]} 69. Bd3+
{[%clk 0:00:25.1]} 69... Ke3 {[%clk 0:00:28.7]} 70. Rc7 {[%clk 0:00:24.6]} 70...
Bh3 {[%clk 0:00:12.5]} 71. Rc6 {[%clk 0:00:23.3]} 71... Bd7 {[%clk 0:00:08.8]}
72. Rh6 {[%clk 0:00:21.7]} 72... Be8 {[%clk 0:00:07.8]} 73. Bg6 {[%clk
0:00:20.4]} 73... Bd7 {[%clk 0:00:07.1]} 74. Bf7 {[%clk 0:00:20.1]} 74... Bg4
{[%clk 0:00:06.6]} 75. Rh4 {[%clk 0:00:19.7]} 75... Be2+ {[%clk 0:00:06.4]} 76.
Kd5 {[%clk 0:00:17.2]} 76... Bxb5 {[%clk 0:00:07.3]} 77. Rh6 {[%clk 0:00:14.9]}
77... Ba4 {[%clk 0:00:07.4]} 78. Be6 {[%clk 0:00:13.6]} 78... Bb3+ {[%clk
0:00:07.4]} 79. Ke5 {[%clk 0:00:14.1]} 79... Bd4+ {[%clk 0:00:07.9]} 80. Kf5
{[%clk 0:00:14.4]} 80... Bc2+ {[%clk 0:00:08.4]} 81. Kg5 {[%clk 0:00:13]} 81...
Be5 {[%clk 0:00:07.5]} 82. Bd7 {[%clk 0:00:12.4]} 82... Bd4 {[%clk 0:00:07.5]}
83. Rc6 {[%clk 0:00:12.1]} 83... Be4 {[%clk 0:00:05.7]} 84. Rc7 {[%clk
0:00:11.9]} 84... Kd2 {[%clk 0:00:05]} 85. Bb5 {[%clk 0:00:08.9]} 85... Ke3
{[%clk 0:00:03.6]} 86. Rc8 {[%clk 0:00:07]} 86... Bb1 {[%clk 0:00:03.1]} 87. Rc1
{[%clk 0:00:06.5]} 87... Be4 {[%clk 0:00:02.4]} 88. Rc8 {[%clk 0:00:05.8]} 88...
Bf3 {[%clk 0:00:02.1]} 89. Rc7 {[%clk 0:00:04.3]} 89... Bc5 {[%clk 0:00:02.4]}
90. Rc8 {[%clk 0:00:03]} 90... Kd4 {[%clk 0:00:02.8]} 91. Kf5 {[%clk 0:00:03.4]}
91... Be4+ {[%clk 0:00:02.6]} 92. Ke6 {[%clk 0:00:02.6]} 92... Bf3 {[%clk
0:00:03.2]} 93. Rf8 {[%clk 0:00:02.2]} 93... Bg4+ {[%clk 0:00:03.4]} 94. Kf7
{[%clk 0:00:01.9]} 94... Kc3 {[%clk 0:00:02]} 95. Rc8 {[%clk 0:00:01.8]} 95...
Bh5+ {[%clk 0:00:02.1]} 96. Kf6 {[%clk 0:00:01.3]} 96... Kb4 {[%clk 0:00:03]}
0-1

[Event "Early-Titled-Tuesday-Blitz-January-23-2024"]
[Site "Chess.com"]
[Date "2024.01.23"]
[Round "11"]
[White "ljuks68"]
[Black "winniethepooh04"]
[Result "0-1"]
[WhiteElo "2451"]
[BlackElo "2530"]
[TimeControl "180+1"]
[EndTime "10:01:15 PST"]
[Termination "winniethepooh04 won by resignation"]

1. e4 {[%clk 0:03:00.9]} 1... e6 {[%clk 0:03:00.9]} 2. d4 {[%clk 0:03:00.6]}
2... d5 {[%clk 0:03:01.5]} 3. Nc3 {[%clk 0:03:01]} 3... dxe4 {[%clk 0:03:01.3]}
4. Nxe4 {[%clk 0:03:01]} 4... Nd7 {[%clk 0:03:02]} 5. Nf3 {[%clk 0:03:00]} 5...
Ngf6 {[%clk 0:03:01.7]} 6. Bg5 {[%clk 0:03:00.5]} 6... h6 {[%clk 0:03:01]} 7.
Nxf6+ {[%clk 0:03:00.2]} 7... Nxf6 {[%clk 0:03:01.9]} 8. Be3 {[%clk 0:03:00.5]}
8... Nd5 {[%clk 0:03:01.2]} 9. Qd2 {[%clk 0:03:00.7]} 9... Nxe3 {[%clk
0:02:57.1]} 10. fxe3 {[%clk 0:03:00.7]} 10... c5 {[%clk 0:02:55]} 11. O-O-O
{[%clk 0:02:59.1]} 11... cxd4 {[%clk 0:02:52]} 12. exd4 {[%clk 0:02:58.4]} 12...
Be7 {[%clk 0:02:51.4]} 13. Ne5 {[%clk 0:02:52.1]} 13... Bg5 {[%clk 0:02:50.7]}
0-1

[Event "Early-Titled-Tuesday-Blitz-January-23-2024"]
[Site "Chess.com"]
[Date "2024.01.23"]
[Round "11"]
[White "Flaccidmoves"]
[Black "Casper"]
[Result "1-0"]
[WhiteElo "2465"]
[BlackElo "2546"]
[TimeControl "180+1"]
[EndTime "10:03:12 PST"]
[Termination "Flaccidmoves won by resignation"]

1. c4 {[%clk 0:03:00.9]} 1... b6 {[%clk 0:02:59.4]} 2. Nc3 {[%clk 0:03:00.1]}
2... Bb7 {[%clk 0:03:00.3]} 3. e4 {[%clk 0:03:00.6]} 3... g6 {[%clk 0:02:59.9]}
4. d4 {[%clk 0:03:00.4]} 4... Bg7 {[%clk 0:03:00.8]} 5. Be3 {[%clk 0:02:59.6]}
5... d6 {[%clk 0:03:01.3]} 6. Nf3 {[%clk 0:02:56.7]} 6... Nd7 {[%clk 0:03:02]}
7. Bd3 {[%clk 0:02:53.8]} 7... c5 {[%clk 0:03:02.1]} 8. d5 {[%clk 0:02:52]} 8...
Ngf6 {[%clk 0:02:57.5]} 9. O-O {[%clk 0:02:48.5]} 9... Ng4 {[%clk 0:02:56.5]}
10. Bf4 {[%clk 0:02:44.5]} 10... O-O {[%clk 0:02:52.3]} 11. h3 {[%clk
0:02:41.7]} 11... Nge5 {[%clk 0:02:52.7]} 12. Nxe5 {[%clk 0:02:38.8]} 12... Nxe5
{[%clk 0:02:53.6]} 13. Be2 {[%clk 0:02:37.8]} 13... f5 {[%clk 0:02:48.1]} 14.
exf5 {[%clk 0:02:33.6]} 14... Rxf5 {[%clk 0:02:49]} 15. Be3 {[%clk 0:02:30.3]}
15... Qf8 {[%clk 0:02:44.9]} 16. f4 {[%clk 0:02:28]} 16... Nf7 {[%clk
0:02:34.5]} 17. Bg4 {[%clk 0:02:26.7]} 17... Rf6 {[%clk 0:02:34]} 18. Ne4 {[%clk
0:02:26.3]} 18... Re8 {[%clk 0:02:26.4]} 19. Nxf6+ {[%clk 0:02:24]} 19... exf6
{[%clk 0:02:27.3]} 20. Be6 {[%clk 0:02:16.4]} 20... h5 {[%clk 0:02:20.9]} 21. f5
{[%clk 0:02:14.7]} 21... g5 {[%clk 0:02:15.4]} 22. Qxh5 {[%clk 0:02:13.7]} 22...
Bc8 {[%clk 0:02:14.7]} 23. Rae1 {[%clk 0:02:09]} 23... Bxe6 {[%clk 0:02:14.5]}
24. fxe6 {[%clk 0:02:08.5]} 24... Ne5 {[%clk 0:02:15.4]} 25. Bxg5 {[%clk
0:02:06.5]} 25... Nxc4 {[%clk 0:02:11.8]} 26. Bxf6 {[%clk 0:02:00.3]} 1-0